Workbook

Sheet Početak
B1: OSNOVNI PODACI O OVOM PREDLOŠKU
B2: Koristite ovaj predložak da biste kreirali budžet marketinga kanala.
B3: Unesite očekivanu prodaju za svaki mesec i druge detalje u tabele.
B4: Ukupne vrednosti se automatski izračunavaju i mini-grafikoni se ažuriraju.
B5: Napomena:
B6: Dodatna uputstva navedena su u koloni A na radnom listu „BUDŽET MARKETINGA KANALA“. Taj tekst je namerno skriven. Da biste uklonili tekst, izaberite kolonu A, a zatim izaberite stavku „IZBRIŠI“. Da biste otkrili tekst, izaberite kolonu A, a zatim promenite boju fonta.
B7: Da biste saznali više o tabelama, pritisnite taster SHIFT, a zatim unutar tabele pritisnite taster F10, izaberite opciju „TABELA“, a zatim stavku „ALTERNATIVNI TEKST“.

Sheet Budžet marketinga kanala
A1: Kreirajte „Marketinški budžet kanala“ u ovom radnom listu. Naslov radnog lista nalazi se u ćeliji sa desne strane. Korisna uputstva nalaze se u ćelijama u ovoj koloni. Pritisnite strelicu nadole da biste počeli. Naslov ovog radnog lista je u ćeliji sa desne strane.
C2: Cena | D2: 1. mesec | E2: 2. mesec | F2: 3. mesec | G2: 4. mesec | H2: 5. mesec | I2: 6. mesec | J2: 7. mesec | K2: 8. mesec | L2: 9. mesec | M2: 10. mesec | N2: 11. mesec | O2: 12. mesec | Q2: Zbir
B3: UKUPNA VREDNOST OČEKIVANE PRODAJE (000)RSD | D3: 750 | E3: 200 | F3: 500 | G3: 1,500 | H3: 1,200 | I3: 1,500 | J3: 1,500 | K3: 1,800 | L3: 2,000 | M3: 2,000 | N3: 2,000 | O3: 2,000 | Q3: =SUM(D3:O3) -> 16,950
A4: Unesite detalje u tabelu Osoblje počevši od ćelije sa desne strane. Ukupno osoblje za svaki mesec se automatski izračunava na kraju tabele i godišnja Ukupna vrednost u ćeliji Q9. Mini-grafikon se ažurira u ćeliji S9. Sledeće uputstvo se nalazi u ćeliji A10. | B4: Stavke osoblja | C4: Cena | D4: 1. mesec | E4: 2. mesec | F4: 3. mesec | G4: 4. mesec | H4: 5. mesec | I4: 6. mesec | J4: 7. mesec | K4: 8. mesec | L4: 9. mesec | M4: 10. mesec | N4: 11. mesec | O4: 12. mesec
B5: OSOBLJE (% UKUPNE PRODAJE) | D5: =D11+D36+D44+D51 -> 110% | E5: 110% | F5: =F11+F36+F44+F51 -> 110% | G5: 110% | H5: 110% | I5: 110% | J5: 110% | K5: 110% | L5: 85% | M5: 85% | N5: 85% | O5: 85%
B6: Ljudski resursi – brojanje | C6: 5 | D6: =+$C$6 -> 5 | E6: 5 | F6: 5 | G6: 5 | H6: 5 | I6: 5 | J6: 5 | K6: 5 | L6: 5 | M6: 5 | N6: 5 | O6: 5
B7: Ljudski resursi – trošak | D7: =$C$6*D6 -> 25.00 | E7: 25.00 | F7: 25.00 | G7: 25.00 | H7: 25.00 | I7: 25.00 | J7: 25.00 | K7: 25.00 | L7: 25.00 | M7: 25.00 | N7: 25.00 | O7: 25.00 | Q7: =SUM('Budžet marketinga kanala'!$D7:$O7) -> 300.00
B8: Provizija | C8: 0.10% | D8: =D3*$C$8 -> 0.75 | E8: 0.20 | F8: 0.50 | G8: 1.50 | H8: 1.20 | I8: 1.50 | J8: 1.50 | K8: 1.80 | L8: 2.00 | M8: 2.00 | N8: 2.00 | O8: 2.00 | Q8: =SUM('Budžet marketinga kanala'!$D8:$O8) -> 16.95
B9: Ukupna vrednost za osoblje (000)RSD | D9: =SUM(D7:D8) -> 25.75 | E9: =SUM(E7:E8) -> 25.20 | F9: 25.50 | G9: 26.50 | H9: 26.20 | I9: 26.50 | J9: 26.50 | K9: 26.80 | L9: 27.00 | M9: 27.00 | N9: 27.00 | O9: 27.00 | Q9: =SUM(Q7:Q8) -> 316.95
A10: Unesite detalje u tabelu Direktni marketing počevši od ćelije sa desne strane. Ukupni troškovi direktnog marketinga za svaki mesec automatski se izračunavaju na kraju tabele a godišnji ukupni troškovi u ćeliji Q17. Mini-grafikon se ažurira u ćeliji S17. Sledeće uputstvo je u ćeliji A18. | B10: STAVKE DIREKTNOG MARKETINGA | C10: Cena | D10: 1. mesec | E10: 2. mesec | F10: 3. mesec | G10: 4. mesec | H10: 5. mesec | I10: 6. mesec | J10: 7. mesec | K10: 8. mesec | L10: 9. mesec | M10: 10. mesec | N10: 11. mesec | O10: 12. mesec
B11: DIREKTNI MARKETING (% UKUPNE PRODAJE) | D11: 100% | E11: 100% | F11: 75% | G11: 40% | H11: 33% | I11: 25% | J11: 20% | K11: 10% | L11: 5% | M11: 5% | N11: 5% | O11: 5%
B12: Reklamiranje preko telefona (% direktne prodaje) | D12: 100% | E12: 50% | F12: 50% | G12: 50% | H12: 50% | I12: 50% | J12: 50% | K12: 50% | L12: 50% | M12: 50% | N12: 50% | O12: 50%
B13: Ljudski resursi – brojanje | C13: 3 | D13: =$C$13*D12 -> 3 | E13: 1.5 | F13: 1.5 | G13: 1.5 | H13: 1.5 | I13: 1.5 | J13: 1.5 | K13: 1.5 | L13: 1.5 | M13: 1.5 | N13: 1.5 | O13: 1.5 | Q13: =SUM('Budžet marketinga kanala'!$D13:$O13) -> 19.50
B14: Podrška infrastrukture | D14: 25 | E14: 10 | F14: 25 | G14: 10 | H14: 25 | I14: 10 | J14: 25 | K14: 10 | L14: 25 | M14: 10 | N14: 25 | O14: 10 | Q14: =SUM('Budžet marketinga kanala'!$D14:$O14) -> 210.00
B15: Provizija | C15: 0.10% | D15: =$C$15*D3*D11*D12 -> 0.75 | E15: 0.10 | F15: 0.19 | G15: 0.30 | H15: 0.20 | I15: 0.19 | J15: 0.15 | K15: 0.09 | L15: 0.05 | M15: 0.05 | N15: 0.05 | O15: 0.05 | Q15: =SUM('Budžet marketinga kanala'!$D15:$O15) -> 2.16
B16: Obuka | D16: 25 | E16: 10 | F16: 25 | G16: 10 | H16: 25 | I16: 10 | J16: 25 | K16: 10 | L16: 25 | M16: 10 | N16: 25 | O16: 10 | Q16: =SUM('Budžet marketinga kanala'!$D16:$O16) -> 210.00
B17: Ukupno za reklamiranje preko telefona (000)RSD | D17: =SUM(D13:D16) -> 53.75 | E17: =SUM(E13:E16) -> 21.60 | F17: =SUM(F13:F16) -> 51.69 | G17: 21.80 | H17: 51.70 | I17: 21.69 | J17: 51.65 | K17: 21.59 | L17: 51.55 | M17: 21.55 | N17: 51.55 | O17: 21.55 | Q17: =SUM(Q13:Q16) -> 441.66
A18: Unesite detalje u tabelu Internet marketing počevši od ćelije sa desne strane. Ukupni troškovi internet marketinga za svaki mesec automatski se izračunavaju na kraju tabele a godišnji ukupni troškovi u ćeliji Q27. Mini-grafikon se ažurira u ćeliji S27. Sledeće uputstvo je u ćeliji A28. | B18: STAVKE INTERNET MARKETINGA | C18: Cena | D18: 1. mesec | E18: 2. mesec | F18: 3. mesec | G18: 4. mesec | H18: 5. mesec | I18: 6. mesec | J18: 7. mesec | K18: 8. mesec | L18: 9. mesec | M18: 10. mesec | N18: 11. mesec | O18: 12. mesec
B19: INTERNET MARKETING (% DIREKTNE PRODAJE) | D19: 25% | E19: 25% | F19: 25% | G19: 25% | H19: 25% | I19: 25% | J19: 25% | K19: 25% | L19: 25% | M19: 25% | N19: 25% | O19: 25%
B20: Ljudski resursi – broj zaposlenih | C20: 1 | D20: =$C$20*D19 -> 0.25 | E20: 0.25 | F20: 0.25 | G20: 0.25 | H20: 0.25 | I20: 0.25 | J20: 0.25 | K20: 0.25 | L20: 0.25 | M20: 0.25 | N20: 0.25 | O20: 0.25 | Q20: =SUM('Budžet marketinga kanala'!$D20:$O20) -> 3.00
B21: Izrada veb sajtova (jednokratni trošak) | D21: 500 | Q21: =SUM('Budžet marketinga kanala'!$D21:$O21) -> 500.00
B22: Hosting | D22: 10 | E22: 10 | F22: 10 | G22: 10 | H22: 10 | I22: 10 | J22: 10 | K22: 10 | L22: 10 | M22: 10 | N22: 10 | O22: 10 | Q22: =SUM('Budžet marketinga kanala'!$D22:$O22) -> 120.00
B23: Podrška i održavanje | D23: 25 | N23: 25 | Q23: =SUM('Budžet marketinga kanala'!$D23:$O23) -> 50.00
B24: Facebook | E24: 100 | G24: 100 | I24: 100 | K24: 100 | M24: 100 | O24: 100 | Q24: =SUM('Budžet marketinga kanala'!$D24:$O24) -> 600.00
B25: Twitter | D25: 100 | F25: 100 | H25: 100 | J25: 100 | L25: 100 | N25: 100 | Q25: =SUM('Budžet marketinga kanala'!$D25:$O25) -> 600.00
B26: YouTube | E26: 100 | G26: 100 | H26: 100 | L26: 100 | M26: 100 | O26: 100 | Q26: =SUM('Budžet marketinga kanala'!$D26:$O26) -> 600.00
B27: Ukupna vrednost za internet marketing (000)RSD | D27: =SUM(D20:D23) -> 535.25 | E27: 10.25 | F27: 10.25 | G27: 10.25 | H27: 10.25 | I27: 10.25 | J27: 10.25 | K27: 10.25 | L27: 10.25 | M27: 10.25 | N27: 35.25 | O27: 10.25 | Q27: =SUM(Q20:Q23) -> 673.00
B28: STAVKE DIREKTNE POŠTE | C28: Cena | D28: 1. mesec | E28: 2. mesec | F28: 3. mesec | G28: 4. mesec | H28: 5. mesec | I28: 6. mesec | J28: 7. mesec | K28: 8. mesec | L28: 9. mesec | M28: 10. mesec | N28: 11. mesec | O28: 12. mesec
B29: DIREKTNA POŠTA (% DIREKTNE PRODAJE)
B30: Ljudski resursi – trošak | Q30: =SUM('Budžet marketinga kanala'!$D30:$O30) -> 0.00
B31: Materijal | D31: 1000 | E31: 1000 | F31: 1000 | G31: 1000 | H31: 1000 | I31: 1000 | J31: 1000 | K31: 1000 | L31: 1000 | M31: 1000 | N31: 1000 | O31: 1000 | Q31: =SUM('Budžet marketinga kanala'!$D31:$O31) -> 12,000.00
B32: Poštarina | D32: 250 | E32: 250 | F32: 250 | G32: 250 | H32: 250 | I32: 250 | J32: 250 | K32: 250 | L32: 250 | M32: 250 | N32: 250 | O32: 250 | Q32: =SUM('Budžet marketinga kanala'!$D32:$O32) -> 3,000.00
B33: Ukupna vrednost direktne pošte RSD(000) | D33: =SUM(D30:D32) -> 1,250.00 | E33: =SUM(E30:E32) -> 1,250.00 | F33: 1,250.00 | G33: 1,250.00 | H33: 1,250.00 | I33: 1,250.00 | J33: 1,250.00 | K33: 1,250.00 | L33: 1,250.00 | M33: 1,250.00 | N33: 1,250.00 | O33: 1,250.00 | Q33: =SUM(Q30:Q32) -> 15,000.00
B34: Ukupna vrednost direktnog marketinga (000)RSD | D34: =SUM(Direktna_pošta[[#Totals],[1. mesec]],Internet_marketing[[#Totals],[1. mesec]],Direktni_marketing[[#Totals],[1. mesec]]) -> 1,839.00 | E34: =SUM(Direktna_pošta[[#Totals],[2. mesec]],Internet_marketing[[#Totals],[2. mesec]],Direktni_marketing[[#Totals],[2. mesec]]) -> 1,281.85 | F34: =SUM(Direktna_pošta[[#Totals],[3. mesec]],Internet_marketing[[#Totals],[3. mesec]],Direktni_marketing[[#Totals],[3. mesec]]) -> 1,311.94 | G34: =SUM(Direktna_pošta[[#Totals],[4. mesec]],Internet_marketing[[#Totals],[4. mesec]],Direktni_marketing[[#Totals],[4. mesec]]) -> 1,282.05 | H34: =SUM(Direktna_pošta[[#Totals],[5. mesec]],Internet_marketing[[#Totals],[5. mesec]],Direktni_marketing[[#Totals],[5. mesec]]) -> 1,311.95 | I34: =SUM(Direktna_pošta[[#Totals],[6. mesec]],Internet_marketing[[#Totals],[6. mesec]],Direktni_marketing[[#Totals],[6. mesec]]) -> 1,281.94 | J34: =SUM(Direktna_pošta[[#Totals],[7. mesec]],Internet_marketing[[#Totals],[7. mesec]],Direktni_marketing[[#Totals],[7. mesec]]) -> 1,311.90 | K34: =SUM(Direktna_pošta[[#Totals],[8. mesec]],Internet_marketing[[#Totals],[8. mesec]],Direktni_marketing[[#Totals],[8. mesec]]) -> 1,281.84 | L34: =SUM(Direktna_pošta[[#Totals],[9. mesec]],Internet_marketing[[#Totals],[9. mesec]],Direktni_marketing[[#Totals],[9. mesec]]) -> 1,311.80 | M34: =SUM(Direktna_pošta[[#Totals],[10. mesec]],Internet_marketing[[#Totals],[10. mesec]],Direktni_marketing[[#Totals],[10. mesec]]) -> 1,281.80 | N34: =SUM(Direktna_pošta[[#Totals],[11. mesec]],Internet_marketing[[#Totals],[11. mesec]],Direktni_marketing[[#Totals],[11. mesec]]) -> 1,336.80 | O34: =SUM(Direktna_pošta[[#Totals],[12. mesec]],Internet_marketing[[#Totals],[12. mesec]],Direktni_marketing[[#Totals],[12. mesec]]) -> 1,281.80 | Q34: =SUM(Q33,Q27,Q17,Q9) -> 16,431.61
A35: Unesite detalje u tabelu Agent i broker počevši od ćelije sa desne strane. Ukupni troškovi agenata i brokera za svaki mesec automatski se izračunavaju na kraju tabele a godišnji ukupni troškovi u ćeliji S42. Mini-grafikon se ažurira u ćeliji S42. Sledeće uputstvo je u ćeliji A43. | B35: AGENT/BROKER STAVKE | C35: Cena | D35: 1. mesec | E35: 2. mesec | F35: 3. mesec | G35: 4. mesec | H35: 5. mesec | I35: 6. mesec | J35: 7. mesec | K35: 8. mesec | L35: 9. mesec | M35: 10. mesec | N35: 11. mesec | O35: 12. mesec
B36: AGENT/BROKER (% UKUPNE PRODAJE) | D36: 10% | E36: 10% | F36: 10% | G36: 10% | H36: 10% | I36: 10% | J36: 10% | K36: 10% | L36: 10% | M36: 10% | N36: 10% | O36: 10%
B37: Komunikacija | D37: 50 | E37: 50 | F37: 50 | G37: 50 | H37: 50 | I37: 50 | J37: 50 | K37: 50 | L37: 50 | M37: 50 | N37: 50 | O37: 50 | Q37: =SUM('Budžet marketinga kanala'!$D37:$O37) -> 600.00
B38: Obuka | D38: 250.00 | E38: 250.00 | F38: 250.00 | G38: 250.00 | H38: 250.00 | I38: 250.00 | J38: 250.00 | K38: 250.00 | L38: 250.00 | M38: 250.00 | N38: 250.00 | O38: 250.00 | Q38: =SUM('Budžet marketinga kanala'!$D38:$O38) -> 3,000.00
B39: Promocije | D39: 600.00 | E39: 600.00 | F39: 600.00 | G39: 600.00 | H39: 600.00 | I39: 600.00 | J39: 600.00 | K39: 600.00 | L39: 600.00 | M39: 600.00 | N39: 600.00 | O39: 600.00 | Q39: =SUM('Budžet marketinga kanala'!$D39:$O39) -> 7,200.00
B40: Popusti | C40: 10.00% | D40: =D3*D36*$C$40 -> 7.50 | E40: 2.00 | F40: 5.00 | G40: 15.00 | H40: 12.00 | I40: 15.00 | J40: 15.00 | K40: 18.00 | L40: 20.00 | M40: 20.00 | N40: 20.00 | O40: 20.00 | Q40: =SUM('Budžet marketinga kanala'!$D40:$O40) -> 169.50
B41: Provizija (% prodaje agenta) | C41: 10.00% | D41: =D3*D36*$C$41 -> 7.50 | E41: 2.00 | F41: 5.00 | G41: 15.00 | H41: 12.00 | I41: 15.00 | J41: 15.00 | K41: 18.00 | L41: 20.00 | M41: 20.00 | N41: 20.00 | O41: 20.00 | Q41: =SUM('Budžet marketinga kanala'!$D41:$O41) -> 169.50
B42: Ukupna vrednost za agente/brokere (000)RSD | D42: =SUM(D37:D41) -> 915.00 | E42: =SUM(E37:E41) -> 904.00 | F42: 910.00 | G42: 930.00 | H42: 924.00 | I42: 930.00 | J42: 930.00 | K42: 936.00 | L42: 940.00 | M42: 940.00 | N42: 940.00 | O42: 940.00 | Q42: =SUM(Q37:Q41) -> 11,139.00
A43: Unesite detalje u tabelu Distributeri počevši od ćelije sa desne strane. Ukupni troškovi distributera za svaki mesec automatski se izračunavaju na kraju tabele a godišnji ukupni troškovi u ćeliji S49. Mini-grafikon se ažurira u ćeliji S49. Sledeće uputstvo je u ćeliji A50. | B43: STAVKE DISTRIBUTERA | C43: Cena | D43: 1. mesec | E43: 2. mesec | F43: 3. mesec | G43: 4. mesec | H43: 5. mesec | I43: 6. mesec | J43: 7. mesec | K43: 8. mesec | L43: 9. mesec | M43: 10. mesec | N43: 11. mesec | O43: 12. mesec
B44: DISTRIBUTERI (% UKUPNE PRODAJE) | D44: 0% | E44: 0% | F44: 0% | G44: 0% | H44: 0% | I44: 15% | J44: 20% | K44: 40% | L44: 40% | M44: 40% | N44: 40% | O44: 40%
B45: Komunikacija | D45: 50 | E45: 50 | F45: 50 | G45: 50 | H45: 50 | I45: 50 | J45: 50 | K45: 50 | L45: 50 | M45: 50 | N45: 50 | O45: 50 | Q45: =SUM('Budžet marketinga kanala'!$D45:$O45) -> 600.00
B46: Obuka | D46: 250.00 | E46: 250.00 | F46: 250.00 | G46: 250.00 | H46: 250.00 | I46: 250.00 | J46: 250.00 | K46: 250.00 | L46: 250.00 | M46: 250.00 | N46: 250.00 | O46: 250.00 | Q46: =SUM(Distributeri[[#This Row],[1. mesec]:[12. mesec]]) -> 3,000.00
B47: Promocije | D47: 600.00 | E47: 600.00 | F47: 600.00 | G47: 600.00 | H47: 600.00 | I47: 600.00 | J47: 600.00 | K47: 600.00 | L47: 600.00 | M47: 600.00 | N47: 600.00 | O47: 600.00 | Q47: =SUM(Distributeri[[#This Row],[1. mesec]:[12. mesec]]) -> 7,200.00
B48: Provizije/popusti (% prodaje distributera) | C48: 15.00% | D48: =D3*D44*$C$48 -> 0 | E48: 0 | F48: 0 | G48: 0 | H48: 0 | I48: 33.75 | J48: 45 | K48: 108 | L48: 120 | M48: 120 | N48: 120 | O48: 120 | Q48: =SUM(Distributeri[[#This Row],[1. mesec]:[12. mesec]]) -> 666.75
B49: Ukupna vrednost za distributere (000)RSD | D49: =SUM(D45:D48) -> 900.00 | E49: =SUM(E45:E48) -> 900.00 | F49: 900.00 | G49: 900.00 | H49: 900.00 | I49: 933.75 | J49: 945.00 | K49: 1,008.00 | L49: 1,020.00 | M49: 1,020.00 | N49: 1,020.00 | O49: 1,020.00 | Q49: =SUM(Q45:Q48) -> 11,466.75
A50: Unesite detalje u tabelu Prodavci počevši od ćelije sa desne strane. Ukupni troškovi prodavaca za svaki mesec automatski se izračunavaju na kraju tabele a godišnji ukupni troškovi u ćeliji Q56. Mini-grafikon se ažurira u ćeliji S56. Sledeće uputstvo je u ćeliji A57. | B50: MALOPRODAJNE STAVKE | C50: Cena | D50: 1. mesec | E50: 2. mesec | F50: 3. mesec | G50: 4. mesec | H50: 5. mesec | I50: 6. mesec | J50: 7. mesec | K50: 8. mesec | L50: 9. mesec | M50: 10. mesec | N50: 11. mesec | O50: 12. mesec
B51: PRODAVAC (% UKUPNE PRODAJE) | D51: 0% | E51: 0% | F51: 25% | G51: 60% | H51: 67% | I51: 60% | J51: 60% | K51: 50% | L51: 30% | M51: 30% | N51: 30% | O51: 30%
B52: Komunikacija | D52: 50 | E52: 50 | F52: 50 | G52: 50 | H52: 50 | I52: 50 | J52: 50 | K52: 50 | L52: 50 | M52: 50 | N52: 50 | O52: 50
B53: Obuka | D53: 250.00 | E53: 250.00 | F53: 250.00 | G53: 250.00 | H53: 250.00 | I53: 250.00 | J53: 250.00 | K53: 250.00 | L53: 250.00 | M53: 250.00 | N53: 250.00 | O53: 250.00 | Q53: =SUM('Budžet marketinga kanala'!$D52:$O52) -> 600.00
B54: Promocije | D54: 600.00 | E54: 600.00 | F54: 600.00 | G54: 600.00 | H54: 600.00 | I54: 600.00 | J54: 600.00 | K54: 600.00 | L54: 600.00 | M54: 600.00 | N54: 600.00 | O54: 600.00 | Q54: =SUM('Budžet marketinga kanala'!$D53:$O53) -> 3,000.00
B55: Provizije/popusti (% od prodaje) | C55: 10.00% | D55: =D3*D51*$C$55 -> 0 | E55: 0 | F55: 12.5 | G55: 90 | H55: 80.4 | I55: 90 | J55: 90 | K55: 90 | L55: 60 | M55: 60 | N55: 60 | O55: 60 | Q55: =SUM('Budžet marketinga kanala'!$D55:$O55) -> 692.90
B56: Ukupna vrednost za prodavca (000)RSD | D56: =SUM(D52:D55) -> 900.00 | E56: =SUM(E52:E55) -> 900.00 | F56: 912.50 | G56: 990.00 | H56: 980.40 | I56: 990.00 | J56: 990.00 | K56: 990.00 | L56: 960.00 | M56: 960.00 | N56: 960.00 | O56: 960.00 | Q56: =SUM(Q53:Q55) -> 4,292.90
A57: Unesite detalje u tabelu Preuzimanje i zadržavanje klijenata počevši od ćelije sa desne strane. Ukupni troškovi preuzimanja i zadržavanja klijenata za svaki mesec automatski se izračunavaju na kraju tabele a godišnji ukupni troškovi u ćeliji Q62. Mini-grafikon se ažurira u ćeliji S62. Sledeće uputstvo je u ćeliji A63. | B57: STAVKE PRONALAŽENJA I ZADRŽAVANJA KLIJENATA (CAR) | C57: Cena | D57: 1. mesec | E57: 2. mesec | F57: 3. mesec | G57: 4. mesec | H57: 5. mesec | I57: 6. mesec | J57: 7. mesec | K57: 8. mesec | L57: 9. mesec | M57: 10. mesec | N57: 11. mesec | O57: 12. mesec
B58: PRONALAŽENJE I ZADRŽAVANJE KLIJENATA (CAR)
B59: Ljudski resursi | D59: 50 | E59: 50 | F59: 50 | G59: 50 | H59: 50 | I59: 50 | J59: 50 | K59: 50 | L59: 50 | M59: 50 | N59: 50 | O59: 50 | Q59: =SUM('Budžet marketinga kanala'!$D59:$O59) -> 600.00
B60: Komunikacija | D60: 250.00 | E60: 250.00 | F60: 250.00 | G60: 250.00 | H60: 250.00 | I60: 250.00 | J60: 250.00 | K60: 250.00 | L60: 250.00 | M60: 250.00 | N60: 250.00 | O60: 250.00 | Q60: =SUM('Budžet marketinga kanala'!$D60:$O60) -> 3,000.00
B61: Promocije/kuponi | D61: 600 | E61: 600 | F61: 600 | G61: 600 | H61: 600 | I61: 600 | J61: 600 | K61: 600 | L61: 600 | M61: 600 | N61: 600 | O61: 600 | Q61: =SUM('Budžet marketinga kanala'!$D61:$O61) -> 7,200.00
B62: Ukupna vrednost za pronalaženje i zadržavanje klijenata (000)RSD | D62: =SUM(D59:D61) -> 900.00 | E62: =SUM(E59:E61) -> 900.00 | F62: 900.00 | G62: 900.00 | H62: 900.00 | I62: 900.00 | J62: 900.00 | K62: 900.00 | L62: 900.00 | M62: 900.00 | N62: 900.00 | O62: 900.00 | Q62: =SUM(Q59:Q61) -> 10,800.00
A63: Unesite detalje u tabelu Drugi troškovi počevši od ćelije sa desne strane. Ukupni drugi troškovi za svaki mesec automatski se izračunavaju na kraju tabele a godišnji ukupni troškovi u ćeliji Q68. Mini-grafikon se ažurira u ćeliji S68. Sledeće uputstvo je u ćeliji A70. | B63: STAVKE DRUGIH TROŠKOVA | C63: Cena | D63: 1. mesec | E63: 2. mesec | F63: 3. mesec | G63: 4. mesec | H63: 5. mesec | I63: 6. mesec | J63: 7. mesec | K63: 8. mesec | L63: 9. mesec | M63: 10. mesec | N63: 11. mesec | O63: 12. mesec
B64: DRUGI TROŠKOVI
B65: Putovanja | D65: 50 | E65: 50 | F65: 50 | G65: 50 | H65: 50 | I65: 50 | J65: 50 | K65: 50 | L65: 50 | M65: 50 | N65: 50 | O65: 50 | Q65: =SUM('Budžet marketinga kanala'!$D65:$O65) -> 600.00
B66: Infrastruktura (računar, telefon itd.) | D66: 250.00 | E66: 250.00 | F66: 250.00 | G66: 250.00 | H66: 250.00 | I66: 250.00 | J66: 250.00 | K66: 250.00 | L66: 250.00 | M66: 250.00 | N66: 250.00 | O66: 250.00 | Q66: =SUM('Budžet marketinga kanala'!$D66:$O66) -> 3,000.00
B67: Podrška kanala | D67: 600 | E67: 600 | F67: 600 | G67: 600 | H67: 600 | I67: 600 | J67: 600 | K67: 600 | L67: 600 | M67: 600 | N67: 600 | O67: 600 | Q67: =SUM('Budžet marketinga kanala'!$D67:$O67) -> 7,200.00
B68: Ukupna vrednost za ostale troškove (000)RSD | D68: =SUM(D65:D67) -> 900.00 | E68: =SUM(E65:E67) -> 900.00 | F68: 900.00 | G68: 900.00 | H68: 900.00 | I68: 900.00 | J68: 900.00 | K68: 900.00 | L68: 900.00 | M68: 900.00 | N68: 900.00 | O68: 900.00 | Q68: =SUM(Q65:Q67) -> 10,800.00
B70: UKUPNA VREDNOST BUDŽETA MARKETINGA: | D70: 6,354.00 | E70: 5,785.85 | F70: 5,834.44 | G70: 5,902.05 | H70: 5,916.35 | I70: 5,935.69 | J70: 5,976.90 | K70: 6,015.84 | L70: 6,031.80 | M70: 6,001.80 | N70: 6,056.80 | O70: 6,001.80 | Q70: =Q72 -> 0.00
